bitfinex/quotes_SOLUSD_20240908
["timestamp","ask_amount","ask_price","bid_price","bid_amount"]
[1725786213185,15.2406,130.38,130.34,9.57500317]
[1725786213873,15.2406,130.38,130.32,45.0]
[1725786214076,15.2406,130.38,130.33,9.57500317]
[1725786215388,15.2406,130.38,130.29,20.0]
[1725786215564,15.2406,130.38,130.31,9.57500317]
[1725786219791,15.2406,130.38,130.32,1.53442615]
[1725786220194,15.2406,130.38,130.33,9.57500317]
[1725786231685,15.2406,130.38,130.35,9.57500317]
[1725786234117,15.2406,130.38,130.33,9.57500317]
[1725786234412,15.2406,130.38,130.34,45.0]
[1725786239300,15.2406,130.38,130.33,9.57500317]
[1725786239596,32.70773885,130.42,130.35,9.57500317]
[1725786239912,23.2001,130.42,130.35,9.57500317]
[1725786240501,23.2001,130.42,130.34,20.0]
[1725786240799,23.2001,130.42,130.35,54.57500317]
[1725786241799,32.70773885,130.42,130.35,9.57500317]
[1725786242891,32.70773885,130.42,130.36,45.0]
[1725786243502,32.70773885,130.42,130.37,9.57500317]
[1725786243708,23.2001,130.42,130.37,9.57500317]
[1725786250195,16.6365,130.42,130.37,9.57500317]
[1725786250524,16.6365,130.42,130.39,9.57500317]
[1725786251313,0.8820849,130.43,130.39,9.57500317]
[1725786252201,0.8820849,130.43,130.38,45.0]
[1725786252522,0.8820849,130.43,130.38,9.57500317]
[1725786253021,0.8820849,130.43,130.39,45.0]
[1725786254111,0.8820849,130.43,130.33,26.327]
[1725786254422,0.8820849,130.43,130.37,9.57500317]
[1725786255616,0.8820849,130.43,130.38,45.0]
[1725786255925,0.8820849,130.43,130.38,54.57500317]
[1725786259122,0.8820849,130.43,130.33,26.327]
[1725786259302,0.8820849,130.43,130.36,9.57500317]
[1725786259624,6.2491849,130.43,130.33,26.327]
[1725786259917,22.5633,130.42,130.36,9.57500317]
[1725786261112,16.2423,130.42,130.38,9.57500317]
[1725786261623,16.2423,130.42,130.33,26.327]
[1725786261820,16.2423,130.42,130.37,9.57500317]
[1725786262030,16.2423,130.42,130.38,45.0]
[1725786262411,16.2423,130.42,130.39,9.57500317]
[1725786262607,0.8820849,130.43,130.39,9.57500317]
[1725786264112,0.8820849,130.43,130.38,45.0]
[1725786264319,0.8820849,130.43,130.39,9.57500317]
[1725786265228,0.8820849,130.43,130.4,45.0]
[1725786266233,0.8820849,130.43,130.39,9.57500317]
[1725786267327,0.8820849,130.43,130.38,9.57500317]
[1725786267533,0.8820849,130.43,130.39,1.53366203]
[1725786268027,0.8820849,130.43,130.38,9.57500317]
[1725786268952,6.2044,130.41,130.34,1.53366203]
[1725786269116,1.3358,130.38,130.3,6.0855]
[1725786269428,1.3358,130.38,130.33,9.57500317]
[1725786271648,1.3358,130.38,130.34,45.0]
[1725786272525,1.3358,130.38,130.35,9.57500317]
[1725786274039,1.3358,130.38,130.36,45.0]
[1725786274620,1.3358,130.38,130.37,9.57500317]
[1725786274940,1.3358,130.38,130.37,54.57500317]
[1725786275122,16.0524,130.42,130.37,54.57500317]
[1725786275319,16.0524,130.42,130.39,9.57500317]
[1725786278135,16.0524,130.42,130.4,45.0]
[1725786278340,0.8820849,130.43,130.4,45.0]
[1725786279648,0.8820849,130.43,130.41,29.57500317]
[1725786280229,0.8820849,130.43,130.42,45.0]
[1725786280443,0.8820849,130.43,130.42,65.0]
[1725786280741,0.8820849,130.43,130.38,9.57500317]
[1725786280944,0.8820849,130.43,130.39,45.0]
[1725786285552,0.8820849,130.43,130.39,44.76937924]
[1725786286046,0.8820849,130.43,130.4,9.57500317]
[1725786289648,0.8820849,130.43,130.41,45.0]
[1725786293533,0.8820849,130.43,130.42,9.57500317]
[1725786293853,0.8820849,130.43,130.42,54.57500317]
[1725786295325,0.8820849,130.43,130.42,74.57500317]
[1725786297532,0.8820849,130.43,130.42,73.70037271]
[1725786300133,0.8820849,130.43,130.42,53.70037271]
[1725786300347,0.8820849,130.43,130.42,73.70037271]
[1725786300631,0.8820849,130.43,130.42,64.12536954]
[1725786300841,0.8820849,130.43,130.42,73.70037271]
[1725786303641,0.8820849,130.43,130.42,64.12536954]
[1725786303841,0.8820849,130.43,130.4,9.57500317]
[1725786304253,0.8820849,130.43,130.41,9.57500317]
[1725786305251,0.8820849,130.43,130.42,45.0]
[1725786307149,0.8820849,130.43,130.42,54.57500317]
[1725786308678,0.8820849,130.43,130.42,45.0]
[1725786308971,0.8820849,130.43,130.41,9.57500317]
[1725786310172,0.8820849,130.43,130.38,21.704]
[1725786310475,17.3431849,130.43,130.35,15.8114]
[1725786310782,17.3431849,130.43,130.38,9.57500317]
[1725786313150,17.3431849,130.43,130.39,45.0]
[1725786313752,17.3431849,130.43,130.39,54.57500317]
[1725786316351,17.3431849,130.43,130.39,9.57500317]
[1725786319257,17.3431849,130.43,130.4,45.0]
[1725786319572,17.3431849,130.43,130.39,9.57500317]
[1725786324961,17.3431849,130.43,130.37,9.57500317]
[1725786326084,17.3431849,130.43,130.37,8.27500317]
[1725786326383,17.3431849,130.43,130.38,45.0]
[1725786327371,17.3431849,130.43,130.39,9.57500317]
[1725786333490,17.3431849,130.43,130.29,6.4679]
[1725786333491,16.6127,130.41,130.29,6.4679]
[1725786333667,30.11221326,130.4,130.31,9.57500317]
[1725786333877,35.48031326,130.4,130.31,9.57500317]
[1725786335081,35.48031326,130.4,130.32,45.0]
[1725786335284,35.48031326,130.4,130.31,9.57500317]
[1725786335486,35.48031326,130.4,130.29,6.4679]
[1725786335690,35.48031326,130.4,130.31,9.57500317]
[1725786336184,20.0,130.4,130.34,9.57500317]
[1725786337083,16.6127,130.41,130.34,9.57500317]
[1725786337391,16.6127,130.41,130.36,9.57500317]
[1725786338174,26.72491326,130.41,130.35,54.57500317]
[1725786338878,16.6127,130.41,130.35,54.57500317]
[1725786350286,16.6127,130.41,130.35,9.57500317]
[1725786351406,21.9804,130.41,130.35,9.57500317]
[1725786355188,16.6127,130.41,130.35,9.57500317]
[1725786355709,16.6127,130.41,130.34,9.57500317]
[1725786356783,21.9805,130.41,130.32,9.57500317]
[1725786356990,5.3681,130.4,130.32,9.57500317]
[1725786359691,22.8622,130.39,130.29,6.4679]
[1725786359891,22.8622,130.39,130.32,9.57500317]
[1725786360388,22.8622,130.39,130.29,6.4679]
[1725786360589,22.8622,130.39,130.32,9.57500317]
[1725786365420,28.2307,130.39,130.32,9.57500317]
[1725786367315,22.8622,130.39,130.32,9.57500317]
[1725786368817,22.8622,130.39,130.32,8.23900317]
[1725786378432,20.523,130.37,130.29,9.57500317]
[1725786378604,15.1536,130.37,130.29,9.57500317]
[1725786378803,15.1536,130.37,130.31,9.57500317]
[1725786380734,15.1536,130.35,130.25,15.5277]
[1725786380926,15.1536,130.35,130.29,9.57500317]
[1725786381227,15.1536,130.35,130.31,9.57500317]
[1725786382430,15.1536,130.35,130.32,45.0]
[1725786383003,15.1536,130.35,130.31,9.57500317]
[1725786383210,15.1536,130.35,130.32,9.57500317]
[1725786385406,15.1536,130.35,130.25,22.0635]
[1725786385728,15.1536,130.35,130.29,9.57500317]
[1725786386812,15.1536,130.35,130.3,45.0]
[1725786387914,15.1536,130.35,130.25,22.0635]
[1725786388132,15.1536,130.35,130.28,9.57500317]
[1725786389015,15.1536,130.35,130.25,22.0635]
[1725786389235,15.1536,130.35,130.28,9.57500317]
[1725786389621,15.1536,130.35,130.29,45.0]
[1725786391617,15.1536,130.35,130.28,9.57500317]
[1725786392131,15.1536,130.35,130.22,21.9434]
[1725786392329,15.1536,130.35,130.23,20.0]
[1725786392516,15.1536,130.35,130.28,9.57500317]
[1725786394929,15.1536,130.35,130.23,20.0]
[1725786394930,6.114,130.34,130.23,20.0]
[1725786395128,15.3787,130.33,130.27,9.57500317]
[1725786398447,15.3787,130.33,130.23,20.0]
[1725786398740,15.3787,130.33,130.24,45.0]
[1725786398948,15.3787,130.33,130.26,9.57500317]
[1725786399819,15.3787,130.33,130.28,9.57500317]
[1725786407227,15.3787,130.33,130.26,9.57500317]
[1725786407648,30.11221326,130.32,130.24,45.0]
[1725786407945,21.7187,130.31,130.25,9.57500317]
[1725786408646,21.7187,130.31,130.2,7.694]
[1725786409032,21.7187,130.31,130.23,9.57500317]
[1725786409741,15.1154,130.31,130.29,9.57500317]
[1725786410366,15.1154,130.31,130.23,22.9335]
[1725786410647,15.1154,130.31,130.28,9.57500317]
[1725786411040,15.1154,130.31,130.27,9.57500317]
[1725786411352,15.1154,130.31,130.25,9.57500317]
[1725786412931,6.6033,130.3,130.25,9.57500317]
[1725786416758,6.6033,130.3,130.23,9.57500317]
[1725786416939,15.1154,130.29,130.23,9.57500317]
[1725786418854,6.6033,130.26,130.13,15.1154]
[1725786419032,6.6033,130.26,130.18,9.57500317]
[1725786419658,6.6033,130.26,130.2,9.57500317]
[1725786421436,6.6033,130.26,130.18,9.57500317]
[1725786421637,6.6033,130.26,130.18,1.88100317]
[1725786424077,20.0,130.25,130.18,1.88100317]
[1725786424256,15.1154,130.24,130.12,6.5818]
[1725786424446,15.1154,130.24,130.16,9.57500317]
[1725786424646,15.1154,130.24,130.17,45.0]
[1725786425839,15.1154,130.24,130.16,9.57500317]
[1725786427656,15.1154,130.24,130.18,9.57500317]
[1725786430956,15.1154,130.24,130.2,9.57500317]
[1725786436256,15.1154,130.24,130.17,45.0]
[1725786436460,6.6033,130.26,130.22,9.57500317]
[1725786436762,15.5775,130.27,130.24,9.57500317]
[1725786438664,6.0184,130.29,130.24,9.57500317]
[1725786438847,15.5775,130.3,130.26,9.57500317]
[1725786439065,21.5959,130.33,130.28,9.57500317]
[1725786439245,21.5959,130.33,130.3,9.57500317]
[1725786443153,21.5959,130.33,130.25,16.6453]
[1725786443555,21.5959,130.33,130.27,9.57500317]
[1725786444775,21.5959,130.29,130.12,16.6453]
[1725786444947,5.3739,130.26,130.12,16.6453]
[1725786445145,25.3743,130.25,130.16,9.57500317]
[1725786445368,6.0184,130.23,130.12,16.6453]
[1725786445664,20.0,130.22,130.14,9.57500317]
[1725786445969,20.0,130.22,130.13,27.83022353]
[1725786446951,20.0,130.22,130.15,27.83022353]
[1725786449466,6.0184,130.23,130.17,27.83022353]
[1725786451457,15.5775,130.24,130.17,27.83022353]
[1725786452972,15.5775,130.24,130.18,45.0]
[1725786453873,15.5775,130.24,130.19,27.83022353]
[1725786454174,6.4975,130.27,130.19,27.83022353]
[1725786454175,22.1016,130.27,130.19,27.83022353]
[1725786454472,20.0,130.26,130.2,45.0]
[1725786454976,22.1016,130.27,130.2,45.0]
[1725786456074,22.1016,130.27,130.21,27.83022353]
[1725786456858,22.1016,130.27,130.2,45.0]
[1725786463476,22.1016,130.27,130.12,19.66484364]
[1725786463689,22.1016,130.27,130.19,27.83022353]
[1725786464772,22.1016,130.27,130.2,45.0]
[1725786468185,22.1016,130.27,130.22,11.12006899]
[1725786473276,22.1016,130.27,130.23,45.0]
[1725786479101,22.1016,130.27,130.22,11.12006899]
[1725786480591,22.1016,130.27,130.18,15.7454]
[1725786480794,22.1016,130.27,130.21,11.12006899]
[1725786487481,22.1016,130.27,130.23,11.12006899]
[1725786496482,15.6041,130.27,130.23,11.12006899]
[1725786508507,15.6041,130.27,130.18,15.7454]
[1725786508696,15.6041,130.27,130.23,11.12006899]
[1725786513415,15.6041,130.27,130.19,45.0]
[1725786513590,15.6041,130.27,130.23,11.12006899]
[1725786519203,6.5135,130.3,130.25,11.12006899]
[1725786519204,21.7227,130.3,130.25,11.12006899]
[1725786519903,21.7227,130.3,130.27,11.12006899]
[1725786520111,21.7227,130.3,130.24,45.0]
[1725786520410,21.7227,130.3,130.27,11.12006899]
[1725786528917,21.7227,130.3,130.24,11.12006899]
[1725786529228,21.7227,130.3,130.23,11.12006899]
[1725786535440,21.7227,130.3,130.18,15.0712]
[1725786535737,21.7227,130.3,130.21,11.12006899]
[1725786535738,6.2734,130.28,130.21,11.12006899]
[1725786536115,17.52309547,130.28,130.21,11.12006899]
[1725786538940,15.2479,130.27,130.21,11.12006899]
[1725786539338,15.2479,130.27,130.15,15.0712]
[1725786539637,15.2479,130.27,130.19,11.12006899]
[1725786540433,20.6214,130.27,130.19,11.12006899]
[1725786540638,20.6214,130.27,130.15,15.0712]
[1725786540828,45.0,130.26,130.19,11.12006899]
[1725786542751,15.2479,130.27,130.19,11.12006899]
[1725786543442,26.49759547,130.27,130.19,11.12006899]
[1725786543950,26.49759547,130.27,130.15,15.0712]
[1725786544245,26.49759547,130.27,130.2,11.12006899]
[1725786546547,11.24969547,130.26,130.2,11.12006899]
[1725786562042,15.2479,130.27,130.22,11.12006899]
[1725786562444,15.2479,130.27,130.24,11.12006899]
[1725786566960,6.2734,130.28,130.24,11.12006899]
[1725786567944,26.51389547,130.3,130.24,11.12006899]
[1725786568342,26.51389547,130.3,130.26,11.12006899]
[1725786568653,0.1542446,130.32,130.28,11.12006899]
[1725786569368,0.1542446,130.32,130.3,11.12006899]
[1725786571583,0.1542446,130.32,130.29,11.12006899]
[1725786576580,0.1542446,130.32,130.31,11.12006899]
[1725786583962,0.1542446,130.32,130.3,11.12006899]
[1725786585163,0.1542446,130.32,130.26,6.4295]
[1725786585364,0.1542446,130.32,130.3,11.12006899]
[1725786586855,0.1542446,130.32,130.27,45.0]
[1725786587285,0.1542446,130.32,130.28,11.12006899]
[1725786591055,0.1542446,130.32,130.3,11.12006899]
[1725786597775,6.2995446,130.35,130.3,11.12006899]
[1725786598364,6.2995446,130.35,130.27,61.2575]
[1725786598577,6.2995446,130.35,130.3,11.12006899]
[1725786601771,17.54924007,130.35,130.29,11.12006899]
[1725786602199,16.62029547,130.34,130.26,11.12006899]
[1725786602373,61.62029547,130.34,130.26,11.12006899]
[1725786603087,20.0,130.33,130.26,11.12006899]
[1725786603280,31.24969547,130.33,130.26,11.12006899]
[1725786607791,20.0,130.33,130.28,11.12006899]
[1725786607994,20.0,130.34,130.28,11.12006899]
[1725786608584,6.2995446,130.35,130.28,11.12006899]
[1725786608794,17.54924007,130.35,130.28,11.12006899]
[1725786610698,17.54924007,130.35,130.3,11.12006899]
[1725786620506,11.24969547,130.34,130.25,16.2575]
[1725786620801,11.24969547,130.34,130.29,11.12006899]
[1725786625911,11.24969547,130.34,130.26,45.0]
[1725786626288,11.24969547,130.34,130.27,11.12006899]
[1725786627509,11.24969547,130.34,130.26,11.12006899]
[1725786627701,16.6314,130.32,130.23,6.4114]
[1725786627913,31.24969547,130.31,130.23,11.12006899]
[1725786628211,6.328,130.3,130.23,11.12006899]
[1725786628384,17.57769547,130.3,130.23,11.12006899]
[1725786630518,6.328,130.3,130.23,11.12006899]
[1725786633916,6.328,130.3,130.21,15.9795]
[1725786634112,6.328,130.3,130.24,11.12006899]
[1725786634608,16.6314,130.32,130.26,11.12006899]
[1725786635513,16.6314,130.32,130.28,11.12006899]
[1725786635721,11.24969547,130.33,130.28,11.12006899]
[1725786639296,11.24969547,130.33,130.3,11.12006899]
[1725786640607,6.328,130.37,130.32,11.12006899]
[1725786641105,27.88109547,130.38,130.32,11.12006899]
[1725786641307,27.88109547,130.38,130.29,6.399]
[1725786641308,11.24969547,130.38,130.36,11.12006899]
[1725786641500,11.24969547,130.42,130.36,11.12006899]
[1725786645325,11.24969547,130.42,130.35,11.12006899]
[1725786646023,16.61689547,130.42,130.33,11.12006899]
[1725786646227,31.24969547,130.41,130.33,11.12006899]
[1725786647601,36.61749547,130.41,130.33,11.12006899]
[1725786648007,31.24969547,130.41,130.33,11.12006899]
[1725786651236,31.24969547,130.41,130.35,11.12006899]
[1725786651411,20.0,130.41,130.37,11.12006899]
[1725786651612,20.0,130.42,130.37,11.12006899]
[1725786654425,31.24969547,130.42,130.37,11.12006899]
[1725786657730,31.24969547,130.42,130.3,15.9795]
[1725786657937,31.24969547,130.42,130.36,11.12006899]
[1725786660429,10.07215656,130.41,130.33,11.12006899]
[1725786660642,20.0,130.4,130.3,15.9795]
[1725786660844,11.24969547,130.39,130.3,15.9795]
[1725786661017,11.24969547,130.39,130.32,11.12006899]
[1725786662531,11.24969547,130.39,130.34,11.12006899]
[1725786662737,20.0,130.4,130.34,11.12006899]
[1725786662940,22.9594,130.43,130.38,11.12006899]
[1725786667343,11.24969547,130.44,130.4,11.12006899]
[1725786667548,0.8817982,130.45,130.4,11.12006899]
[1725786668126,12.13149367,130.45,130.35,15.2984]
[1725786668335,12.13149367,130.45,130.38,11.12006899]
[1725786670052,12.13149367,130.45,130.36,72.73439856]
[1725786671535,6.0187,130.44,130.36,72.73439856]
[1725786671735,15.2926,130.43,130.36,27.73439856]
[1725786674753,15.2926,130.43,130.34,27.73439856]
[1725786674934,26.54229547,130.43,130.34,27.73439856]
[1725786675134,31.90919547,130.43,130.34,27.73439856]
[1725786675334,20.0,130.42,130.34,27.73439856]
[1725786685058,21.3113,130.41,130.29,21.2088]
[1725786685263,80.2926,130.4,130.29,42.77889856]
[1725786685455,80.2926,130.4,130.31,27.73439856]
[1725786685771,35.2926,130.4,130.31,27.73439856]
[1725786686164,46.54229547,130.4,130.31,27.73439856]
[1725786687468,11.24969547,130.39,130.31,27.73439856]
[1725786691459,35.2926,130.4,130.33,27.73439856]
[1725786691958,35.2926,130.4,130.34,11.09996864]
[1725786695052,46.54229547,130.4,130.34,11.09996864]
[1725786699373,46.54229547,130.4,130.3,11.09996864]
[1725786699374,11.24969547,130.39,130.3,11.09996864]
[1725786699555,20.0,130.38,130.3,11.09996864]
[1725786699753,30.07215656,130.38,130.3,11.09996864]
[1725786700684,30.07215656,130.38,130.31,45.0]
[1725786700983,30.07215656,130.38,130.32,11.09996864]
[1725786703670,15.2926,130.4,130.32,11.09996864]
[1725786703874,20.0,130.39,130.32,11.09996864]
[1725786704283,30.07215656,130.39,130.32,11.09996864]
[1725786709310,30.07215656,130.39,130.34,11.09996864]
[1725786709486,10.07215656,130.39,130.34,11.09996864]
[1725786711379,10.07215656,130.39,130.31,11.09996864]
[1725786711583,6.2891,130.38,130.31,11.09996864]
[1725786713418,6.2891,130.38,130.32,45.0]
[1725786715600,6.2891,130.38,130.33,11.09996864]
[1725786718294,6.2891,130.38,130.26,6.1643]
[1725786718295,15.4388,130.37,130.26,6.1643]
[1725786718620,26.68849547,130.37,130.3,11.09996864]
[1725786718991,26.68849547,130.37,130.27,65.0]
[1725786719214,26.68849547,130.37,130.3,11.09996864]
[1725786719586,15.4388,130.37,130.3,11.09996864]
[1725786719939,15.4388,130.4,130.36,11.09996864]
[1725786721927,15.4388,130.4,130.34,27.74227931]
[1725786722152,26.68849547,130.4,130.31,45.0]
[1725786722419,11.24969547,130.39,130.33,27.74227931]
[1725786722617,11.24969547,130.39,130.34,45.0]
[1725786729133,15.4388,130.4,130.34,45.0]
[1725786731011,15.4388,130.4,130.35,27.74227931]
[1725786731934,15.4388,130.4,130.36,45.0]
[1725786734611,15.4388,130.4,130.35,27.74227931]
[1725786734938,17.53879547,130.42,130.35,27.74227931]
[1725786735113,17.53879547,130.42,130.36,45.0]
[1725786735633,11.24969547,130.41,130.36,45.0]
[1725786736135,11.24969547,130.41,130.35,27.74227931]
[1725786736611,6.2891,130.42,130.36,45.0]
[1725786737448,17.53879547,130.42,130.36,45.0]
[1725786739439,17.53879547,130.42,130.35,27.74227931]
[1725786740334,11.24969547,130.41,130.33,27.74227931]
[1725786740635,11.24969547,130.41,130.34,45.0]
[1725786740842,6.2891,130.42,130.35,27.74227931]
[1725786741143,6.2891,130.42,130.36,45.0]
[1725786741510,6.2891,130.42,130.37,27.74227931]
[1725786741713,6.2891,130.42,130.38,45.0]
[1725786742232,15.1261,130.44,130.38,45.0]
[1725786742639,26.37579547,130.44,130.38,45.0]
[1725786743229,11.24969547,130.43,130.38,45.0]
[1725786743540,9.24969547,130.43,130.38,45.0]
[1725786743919,9.24969547,130.43,130.39,11.09087948]
[1725786744119,15.1261,130.44,130.39,11.09087948]
[1725786744841,15.1261,130.44,130.41,11.09087948]
[1725786745615,0.8817982,130.45,130.41,11.09087948]
[1725786746943,0.8817982,130.45,130.43,11.09087948]
[1725786747843,0.8817982,130.45,130.41,11.09087948]
[1725786748317,0.8817982,130.45,130.39,11.09087948]
[1725786748514,0.8817982,130.45,130.4,45.0]
[1725786748721,0.8817982,130.45,130.41,11.09087948]
[1725786749127,0.8817982,130.45,130.4,45.0]
[1725786749542,0.8817982,130.45,130.41,11.09087948]
[1725786749948,0.8817982,130.45,130.43,11.09087948]
[1725786751342,0.8817982,130.45,130.44,56.09087948]
[1725786751893,0.8817982,130.45,130.44,76.09087948]
[1725786752052,16.313,130.53,130.48,11.09087948]
[1725786752222,260.9757,130.55,130.44,65.0]
[1725786752223,6.0757,130.55,130.44,65.0]
[1725786752519,0.8817982,130.58,130.51,11.09087948]
[1725786752721,0.8817982,130.58,130.48,16.6098]
[1725786752722,0.8817982,130.58,130.55,11.09087948]
[1725786752921,0.8817982,130.58,130.52,11.09087948]
[1725786753320,0.8817982,130.58,130.54,11.09087948]
[1725786753658,0.8817982,130.58,130.48,16.6098]
[1725786753828,0.8817982,130.58,130.53,11.09087948]
[1725786754025,0.8817982,130.58,130.5,27.66825021]
[1725786754219,0.8817982,130.58,130.51,45.0]
[1725786754469,0.8817982,130.58,130.56,27.66825021]
[1725786754770,0.8817982,130.58,130.49,1.53170104]
[1725786755068,0.8817982,130.58,130.56,27.66825021]
[1725786755267,0.8817982,130.58,130.57,1.53140246]
[1725786755576,254.9,130.7,130.62,27.66825021]
[1725786755577,6.0757,130.66,130.62,27.66825021]
[1725786755862,6.0757,130.66,130.59,27.66825021]
[1725786756050,5.5757,130.66,130.59,27.66825021]
[1725786756756,5.5757,130.66,130.55,22.799]
[1725786757071,12.13525743,130.65,130.55,27.66825021]
[1725786757566,12.13525743,130.65,130.57,27.66825021]
[1725786758181,12.13525743,130.65,130.59,27.66825021]
[1725786758352,5.5757,130.66,130.52,10.0]
[1725786758566,5.5757,130.66,130.58,27.66825021]
[1725786758862,5.5757,130.66,130.59,45.0]
[1725786759365,16.98324632,130.66,130.59,45.0]
[1725786760482,5.5757,130.66,130.59,45.0]
[1725786761969,10.49043114,130.69,130.63,27.66825021]
[1725786762151,0.8817982,130.71,130.68,27.66825021]
[1725786762461,0.8817982,130.71,130.69,45.0]
[1725786763146,0.8817982,130.71,130.66,27.66825021]
[1725786763549,0.8817982,130.71,130.67,45.0]
[1725786763765,0.8817982,130.71,130.68,72.66825021]
[1725786764541,0.8817982,130.71,130.68,27.66825021]
[1725786764740,0.8817982,130.71,130.64,27.66825021]
[1725786765367,6.9574982,130.71,130.64,27.66825021]
[1725786766246,6.9574982,130.71,130.62,27.66825021]
[1725786766565,20.0,130.7,130.62,27.66825021]
[1725786767577,6.9574982,130.71,130.64,27.66825021]
[1725786767868,6.9574982,130.71,130.56,72.799]
[1725786767869,6.9574982,130.71,130.65,72.66825021]
[1725786768066,0.8817982,130.71,130.67,27.66825021]
[1725786768268,0.8817982,130.71,130.65,45.0]
[1725786768269,0.8817982,130.71,130.65,72.66825021]
[1725786768853,0.8817982,130.71,130.66,20.0]
[1725786769367,0.8817982,130.71,130.67,27.66825021]
[1725786769952,0.8817982,130.71,130.66,20.0]
[1725786769953,0.8817982,130.71,130.65,72.66825021]
[1725786770145,0.8817982,130.71,130.65,27.66825021]
[1725786770572,6.6507,130.69,130.63,27.66825021]
[1725786771271,6.6507,130.69,130.65,27.66825021]
[1725786779280,6.6507,130.69,130.66,1.53052261]
[1725786779773,15.1902,130.7,130.66,46.53052261]
[1725786780081,0.8817982,130.71,130.66,45.0]
[1725786780968,0.8817982,130.71,130.67,27.66825021]
[1725786781471,0.8817982,130.71,130.69,27.66825021]
[1725786785380,0.8817982,130.71,130.67,27.66825021]
[1725786786887,0.8817982,130.71,130.69,27.66825021]
[1725786790200,0.8817982,130.71,130.67,27.66825021]
[1725786790394,16.8165982,130.71,130.67,27.66825021]
[1725786791167,0.8817982,130.71,130.69,55.33650042]
[1725786791423,292.8338982,130.84,130.69,55.33650042]
[1725786791424,15.9348,130.77,130.7,1.5300057]
[1725786791575,15.9348,130.77,130.69,55.33650042]
[1725786791576,6.1868,130.78,130.74,27.66825021]
[1725786792390,15.9348,130.8,130.74,27.66825021]
[1725786793866,6.1868,130.81,130.76,27.66825021]
[1725786794800,16.8165982,130.84,130.76,27.66825021]
[1725786796074,16.8165982,130.84,130.78,27.66825021]
[1725786796385,4.5,130.82,130.78,27.66825021]
[1725786797887,4.5,130.82,130.8,27.66825021]
[1725786799809,4.5,130.82,130.78,27.66825021]
[1725786800618,4.5,130.82,130.76,27.66825021]
[1725786800786,10.0,130.9,130.76,27.66825021]
[1725786800787,10.0,130.92,130.82,6.3299]
[1725786800990,10.0,130.92,130.78,21.86374103]
[1725786800991,10.0,131.17,130.96,6.3299]
[1725786801309,10.0,131.24,131.12,27.66825021]
[1725786801517,58.3817982,131.23,131.09,27.66825021]
[1725786801803,58.3817982,131.23,131.1,27.66825021]
[1725786801804,57.5,131.21,131.1,27.66825021]
[1725786802199,0.8817982,131.23,131.1,27.66825021]
[1725786802200,57.5,131.19,131.1,27.66825021]
[1725786802401,57.5,131.21,131.1,27.66825021]
[1725786802612,19.11485788,131.18,131.12,27.66825021]
[1725786802787,19.11485788,131.18,131.04,27.66825021]
[1725786802788,0.7348399,131.23,131.14,27.66825021]
[1725786802986,0.7348399,131.23,130.99,87.66825]
[1725786802987,0.7348399,131.23,131.18,27.66825021]
[1725786803483,70.67906007,131.22,131.08,2.5]
[1725786803723,13.17906007,131.22,131.08,2.5]
[1725786803909,35.30066007,131.22,131.12,34.25482024]
[1725786804082,28.64193862,131.21,131.12,34.25482024]
[1725786804411,35.30066007,131.22,131.12,34.25482024]
[1725786804620,9.54728937,131.21,131.12,34.25482024]
[1725786804910,35.30066007,131.22,131.12,36.75482024]
[1725786805212,9.5471988,131.21,131.14,36.75482024]
[1725786805509,22.1216,131.22,131.14,2.5]
[1725786806009,35.30066007,131.22,131.14,2.5]
[1725786806311,13.17906007,131.21,131.14,2.5]
[1725786806491,13.17906007,131.21,131.14,34.25482024]
[1725786807209,22.1216,131.22,131.16,34.25482024]
[1725786807507,0.7348399,131.23,131.18,34.25482024]
[1725786807885,0.7348399,131.23,131.18,36.75482024]
[1725786808085,0.7348399,131.23,131.18,34.25482024]
[1725786808301,0.7348399,131.23,131.18,36.75482024]
[1725786808901,0.7348399,131.23,131.18,2.5]
[1725786809105,0.7348399,131.23,131.16,34.25482024]
[1725786809412,23.09,131.21,131.15,2.9001448]
[1725786809618,23.09,131.21,131.08,2.5]
[1725786809619,11.25698732,131.2,131.08,2.5]
[1725786809818,11.25698732,131.2,131.07,34.25482024]
[1725786809819,84.34698732,131.2,131.07,34.25482024]
[1725786809994,47.25200739,131.2,131.08,2.5]
[1725786810311,45.0,131.19,131.08,2.5]
[1725786810687,68.09,131.19,131.08,2.5]